[Event "Titled Tuesday Blitz August 1 Early 2023"]
[White "Tologon tegin, Semetei"]
[Black "Hrbek, Stepan"]
[WhiteFideId "13800574"]
[BlackFideId "393479"]
[WhiteElo "2570"]
[BlackElo "2359"]
[Result "1-0"]
[Round "2"]
[TimeControl "180+1"]
[Date "2023.08.01"]
[WhiteClock "0:01:34"]
[BlackClock "0:00:00"]
[Board "174"]

1. e4 {[%clk 0:03:00]}  e5 {[%clk 0:02:59]} 2. Nc3 {[%clk 0:02:59]}  Nf6 {[%clk 0:02:58]} 3. f4 {[%clk 0:02:57]}  d5 {[%clk 0:02:56]} 4. fxe5 {[%clk 0:02:57]}  Nxe4 {[%clk 0:02:56]} 5. Nf3 {[%clk 0:02:57]}  Be7 {[%clk 0:02:54]} 6. Qe2 {[%clk 0:02:57]}  Nxc3 {[%clk 0:02:50]} 7. dxc3 {[%clk 0:02:58]}  Be6 {[%clk 0:02:35]} 8. Bf4 {[%clk 0:02:57]}  c5 {[%clk 0:02:33]} 9. O-O-O {[%clk 0:02:53]}  Nc6 {[%clk 0:02:32]} 10. Qf2 {[%clk 0:02:52]}  h6 {[%clk 0:02:26]} 11. h4 {[%clk 0:02:52]}  Qa5 {[%clk 0:02:18]} 12. a3 {[%clk 0:02:50]}  O-O-O {[%clk 0:02:17]} 13. g3 {[%clk 0:02:47]}  Rhg8 {[%clk 0:02:13]} 14. h5 {[%clk 0:02:43]}  Qa4 {[%clk 0:02:09]} 15. Bh3 {[%clk 0:02:40]}  c4 {[%clk 0:01:51]} 16. Bxe6+ {[%clk 0:02:34]}  fxe6 {[%clk 0:01:52]} 17. Nd4 {[%clk 0:02:34]}  Bc5 {[%clk 0:01:39]} 18. Qf3 {[%clk 0:02:33]}  Bxd4 {[%clk 0:01:38]} 19. cxd4 {[%clk 0:02:32]}  Na5 {[%clk 0:01:29]} 20. Bd2 {[%clk 0:02:24]}  Nc6 {[%clk 0:01:22]} 21. Qg4 {[%clk 0:02:24]}  Kd7 {[%clk 0:01:15]} 22. Rhf1 {[%clk 0:02:23]}  a5 {[%clk 0:00:56]} 23. Rf7+ {[%clk 0:02:20]}  Ne7 {[%clk 0:00:56]} 24. Rdf1 {[%clk 0:02:10]}  Rde8 {[%clk 0:00:56]} 25. Rxg7 {[%clk 0:02:05]}  Rxg7 {[%clk 0:00:51]} 26. Qxg7 {[%clk 0:02:05]}  Rg8 {[%clk 0:00:49]} 27. Qh7 {[%clk 0:01:34]}  Rxg3 {[%clk 0:00:43]} 28. Rf7 {[%clk 0:01:34]}  Rg1+ {[%clk 0:00:00]} 29. Be1 {[%clk 0:01:34]} 1-0


[Site "https://www.chess.com"]

[Event "Titled Tuesday Blitz August 1 Early 2023"]
[White "Guz, Ari"]
[Black "Lopez Del Alamo, Antonio"]
[WhiteFideId "2825759"]
[BlackFideId "2227339"]
[WhiteElo "2569"]
[BlackElo "2359"]
[Result "1-0"]
[Round "2"]
[TimeControl "180+1"]
[Date "2023.08.01"]
[WhiteClock "0:00:21"]
[BlackClock "0:01:07"]
[Board "175"]

1. e4 {[%clk 0:03:00]}  c5 {[%clk 0:02:59]} 2. Nf3 {[%clk 0:03:00]}  e6 {[%clk 0:02:59]} 3. d4 {[%clk 0:02:52]}  cxd4 {[%clk 0:03:00]} 4. Nxd4 {[%clk 0:02:53]}  Nf6 {[%clk 0:03:00]} 5. Nc3 {[%clk 0:02:51]}  Nc6 {[%clk 0:03:00]} 6. Nxc6 {[%clk 0:02:48]}  bxc6 {[%clk 0:03:00]} 7. e5 {[%clk 0:02:49]}  Nd5 {[%clk 0:03:00]} 8. Ne4 {[%clk 0:02:49]}  Bb7 {[%clk 0:03:00]} 9. c4 {[%clk 0:02:46]}  Nb4 {[%clk 0:03:00]} 10. c5 {[%clk 0:02:43]}  Qb8 {[%clk 0:02:59]} 11. Nd6+ {[%clk 0:02:37]}  Bxd6 {[%clk 0:02:56]} 12. exd6 {[%clk 0:02:38]}  Ba6 {[%clk 0:02:54]} 13. Bxa6 {[%clk 0:02:13]}  Nxa6 {[%clk 0:02:54]} 14. O-O {[%clk 0:02:13]}  Nxc5 {[%clk 0:02:48]} 15. Qd4 {[%clk 0:02:12]}  Qb5 {[%clk 0:02:33]} 16. Be3 {[%clk 0:01:22]}  Na4 {[%clk 0:02:22]} 17. Qxg7 {[%clk 0:01:20]}  O-O-O {[%clk 0:02:21]} 18. b3 {[%clk 0:01:03]}  Rhg8 {[%clk 0:02:13]} 19. Qd4 {[%clk 0:00:50]}  Nb6 {[%clk 0:02:11]} 20. a4 {[%clk 0:00:50]}  Qf5 {[%clk 0:02:08]} 21. a5 {[%clk 0:00:49]}  Qd5 {[%clk 0:02:03]} 22. Qxd5 {[%clk 0:00:42]}  Nxd5 {[%clk 0:02:04]} 23. Bxa7 {[%clk 0:00:41]}  Kb7 {[%clk 0:02:03]} 24. Bc5 {[%clk 0:00:37]}  Ka6 {[%clk 0:02:03]} 25. g3 {[%clk 0:00:34]}  f5 {[%clk 0:02:02]} 26. Rfd1 {[%clk 0:00:32]}  Rb8 {[%clk 0:01:57]} 27. Bb6 {[%clk 0:00:23]}  h5 {[%clk 0:01:51]} 28. Rd4 {[%clk 0:00:22]}  f4 {[%clk 0:01:49]} 29. Raa4 {[%clk 0:00:21]}  h4 {[%clk 0:01:46]} 30. Kg2 {[%clk 0:00:20]}  fxg3 {[%clk 0:01:43]} 31. fxg3 {[%clk 0:00:21]}  hxg3 {[%clk 0:01:43]} 32. hxg3 {[%clk 0:00:22]}  Rg6 {[%clk 0:01:42]} 33. Rg4 {[%clk 0:00:22]}  Rbg8 {[%clk 0:01:41]} 34. Rxg6 {[%clk 0:00:22]}  Rxg6 {[%clk 0:01:42]} 35. Bf2 {[%clk 0:00:20]}  Nc3 {[%clk 0:01:35]} 36. Rh4 {[%clk 0:00:20]}  Kxa5 {[%clk 0:01:30]} 37. Be1 {[%clk 0:00:19]}  Kb5 {[%clk 0:01:25]} 38. Bxc3 {[%clk 0:00:18]}  c5 {[%clk 0:01:18]} 39. Be5 {[%clk 0:00:18]}  Kc6 {[%clk 0:01:18]} 40. Rh7 {[%clk 0:00:18]}  Rg5 {[%clk 0:01:18]} 41. Bf4 {[%clk 0:00:18]}  Rd5 {[%clk 0:01:18]} 42. Rh8 {[%clk 0:00:19]}  e5 {[%clk 0:01:18]} 43. Rc8+ {[%clk 0:00:18]}  Kb5 {[%clk 0:01:17]} 44. Be3 {[%clk 0:00:18]}  Rxd6 {[%clk 0:01:16]} 45. Rxc5+ {[%clk 0:00:18]}  Kb4 {[%clk 0:01:16]} 46. Rxe5 {[%clk 0:00:19]}  Kxb3 {[%clk 0:01:17]} 47. g4 {[%clk 0:00:19]}  Kc4 {[%clk 0:01:16]} 48. g5 {[%clk 0:00:20]}  Kd3 {[%clk 0:01:15]} 49. Kf3 {[%clk 0:00:19]}  Ra6 {[%clk 0:01:12]} 50. Bf4 {[%clk 0:00:20]}  d6 {[%clk 0:01:10]} 51. Rd5+ {[%clk 0:00:20]}  Kc4 {[%clk 0:01:07]} 52. Rxd6 {[%clk 0:00:21]} 1-0


[Site "https://www.chess.com"]

[Event "Titled Tuesday Blitz August 1 Early 2023"]
[White "Gu, Xiaobing"]
[Black "Cnejev, Vladimir-Alexandru"]
[WhiteFideId "8602611"]
[BlackFideId "1260898"]
[WhiteElo "2359"]
[BlackElo "2549"]
[Result "0-1"]
[Round "2"]
[TimeControl "180+1"]
[Date "2023.08.01"]
[WhiteClock "0:00:11"]
[BlackClock "0:00:18"]
[Board "176"]

1. e4 {[%clk 0:03:00]}  e5 {[%clk 0:02:58]} 2. d4 {[%clk 0:02:56]}  exd4 {[%clk 0:02:58]} 3. Qxd4 {[%clk 0:02:56]}  Nc6 {[%clk 0:02:58]} 4. Qe3 {[%clk 0:02:57]}  Nf6 {[%clk 0:02:57]} 5. Bd2 {[%clk 0:02:56]}  Be7 {[%clk 0:02:33]} 6. Nc3 {[%clk 0:02:56]}  O-O {[%clk 0:02:33]} 7. O-O-O {[%clk 0:02:53]}  d5 {[%clk 0:02:33]} 8. exd5 {[%clk 0:02:21]}  Nxd5 {[%clk 0:02:34]} 9. Qf3 {[%clk 0:02:16]}  Nxc3 {[%clk 0:02:02]} 10. Bxc3 {[%clk 0:02:13]}  Bd6 {[%clk 0:02:03]} 11. Bd3 {[%clk 0:01:56]}  Qg5+ {[%clk 0:01:49]} 12. Bd2 {[%clk 0:01:42]}  Qe7 {[%clk 0:01:49]} 13. Nh3 {[%clk 0:01:34]}  Ne5 {[%clk 0:01:47]} 14. Bxh7+ {[%clk 0:01:31]}  Kxh7 {[%clk 0:01:39]} 15. Qh5+ {[%clk 0:01:31]}  Kg8 {[%clk 0:01:39]} 16. Ng5 {[%clk 0:01:31]}  Bf5 {[%clk 0:01:39]} 17. Rde1 {[%clk 0:01:06]}  Qd7 {[%clk 0:00:54]} 18. Bc3 {[%clk 0:00:44]}  Bg6 {[%clk 0:00:40]} 19. Qh4 {[%clk 0:00:42]}  Qg4 {[%clk 0:00:37]} 20. Qxg4 {[%clk 0:00:38]}  Nxg4 {[%clk 0:00:37]} 21. f3 {[%clk 0:00:39]}  Bf4+ {[%clk 0:00:20]} 22. Kb1 {[%clk 0:00:38]}  Bxg5 {[%clk 0:00:20]} 23. fxg4 {[%clk 0:00:37]}  Rfe8 {[%clk 0:00:21]} 24. h4 {[%clk 0:00:36]}  Bf4 {[%clk 0:00:21]} 25. h5 {[%clk 0:00:35]}  Be4 {[%clk 0:00:21]} 26. Re2 {[%clk 0:00:27]}  Bc6 {[%clk 0:00:20]} 27. Rf2 {[%clk 0:00:27]}  Bg3 {[%clk 0:00:20]} 28. Rd2 {[%clk 0:00:26]}  Be5 {[%clk 0:00:20]} 29. Bxe5 {[%clk 0:00:20]}  Rxe5 {[%clk 0:00:20]} 30. h6 {[%clk 0:00:20]}  gxh6 {[%clk 0:00:20]} 31. b4 {[%clk 0:00:19]}  Kg7 {[%clk 0:00:20]} 32. a3 {[%clk 0:00:18]}  Rae8 {[%clk 0:00:21]} 33. c4 {[%clk 0:00:15]}  Re1+ {[%clk 0:00:21]} 34. Rxe1 {[%clk 0:00:15]}  Rxe1+ {[%clk 0:00:22]} 35. Kc2 {[%clk 0:00:15]}  Rg1 {[%clk 0:00:22]} 36. b5 {[%clk 0:00:16]}  Bxg2 {[%clk 0:00:21]} 37. Rd7 {[%clk 0:00:15]}  Bf3 {[%clk 0:00:19]} 38. Rxc7 {[%clk 0:00:14]}  Rxg4 {[%clk 0:00:20]} 39. c5 {[%clk 0:00:14]}  h5 {[%clk 0:00:19]} 40. Kd3 {[%clk 0:00:14]}  h4 {[%clk 0:00:19]} 41. c6 {[%clk 0:00:14]}  bxc6 {[%clk 0:00:19]} 42. bxc6 {[%clk 0:00:15]}  h3 {[%clk 0:00:18]} 43. Rxa7 {[%clk 0:00:13]}  Bxc6 {[%clk 0:00:18]} 44. Ra6 {[%clk 0:00:11]}  h2 {[%clk 0:00:18]} 0-1


[Site "https://www.chess.com"]

[Event "Titled Tuesday Blitz August 1 Early 2023"]
[White "Castaneda, Jhon David"]
[Black "Yonal, Timur"]
[WhiteFideId "4405048"]
[BlackFideId "44115725"]
[WhiteElo "2545"]
[BlackElo "2356"]
[Result "1-0"]
[Round "2"]
[TimeControl "180+1"]
[Date "2023.08.01"]
[WhiteClock "0:00:06"]
[BlackClock "0:00:00"]
[Board "177"]

1. d4 {[%clk 0:03:00]}  d5 {[%clk 0:02:59]} 2. Nf3 {[%clk 0:03:00]}  Nf6 {[%clk 0:02:58]} 3. c4 {[%clk 0:02:59]}  e6 {[%clk 0:02:58]} 4. Nc3 {[%clk 0:02:59]}  a6 {[%clk 0:02:56]} 5. e3 {[%clk 0:02:57]}  dxc4 {[%clk 0:02:55]} 6. Bxc4 {[%clk 0:02:58]}  b5 {[%clk 0:02:55]} 7. Bb3 {[%clk 0:02:56]}  Bb7 {[%clk 0:02:56]} 8. O-O {[%clk 0:02:56]}  Be7 {[%clk 0:02:56]} 9. Ne5 {[%clk 0:02:52]}  Nbd7 {[%clk 0:02:51]} 10. f4 {[%clk 0:02:52]}  O-O {[%clk 0:02:50]} 11. Qe2 {[%clk 0:02:50]}  c5 {[%clk 0:02:49]} 12. Rd1 {[%clk 0:02:48]}  Qb6 {[%clk 0:02:46]} 13. a4 {[%clk 0:02:31]}  cxd4 {[%clk 0:02:42]} 14. exd4 {[%clk 0:02:23]}  b4 {[%clk 0:02:42]} 15. a5 {[%clk 0:02:20]}  Qa7 {[%clk 0:02:41]} 16. Na4 {[%clk 0:02:05]}  Rfd8 {[%clk 0:02:30]} 17. Be3 {[%clk 0:02:04]}  Bd5 {[%clk 0:02:22]} 18. Bxd5 {[%clk 0:02:00]}  Nxd5 {[%clk 0:02:21]} 19. Nc6 {[%clk 0:02:00]}  Qc7 {[%clk 0:02:17]} 20. Nxd8 {[%clk 0:01:49]}  Qxd8 {[%clk 0:02:18]} 21. Nc5 {[%clk 0:01:40]}  Nxc5 {[%clk 0:02:07]} 22. dxc5 {[%clk 0:01:40]}  Qc7 {[%clk 0:02:07]} 23. Rdc1 {[%clk 0:01:27]}  Qc6 {[%clk 0:02:03]} 24. g3 {[%clk 0:01:21]}  Bf6 {[%clk 0:02:03]} 25. Bf2 {[%clk 0:01:22]}  Rd8 {[%clk 0:01:59]} 26. Rd1 {[%clk 0:01:21]}  g6 {[%clk 0:01:58]} 27. Rd2 {[%clk 0:01:15]}  h5 {[%clk 0:01:26]} 28. Qc4 {[%clk 0:01:05]}  h4 {[%clk 0:01:22]} 29. gxh4 {[%clk 0:01:02]}  Kg7 {[%clk 0:01:13]} 30. h5 {[%clk 0:00:50]}  Rh8 {[%clk 0:00:47]} 31. hxg6 {[%clk 0:00:48]}  Rg8 {[%clk 0:00:26]} 32. gxf7 {[%clk 0:00:39]}  Kxf7+ {[%clk 0:00:27]} 33. Bg3 {[%clk 0:00:39]}  Bh4 {[%clk 0:00:24]} 34. Rd3 {[%clk 0:00:24]}  Rg4 {[%clk 0:00:10]} 35. Rf1 {[%clk 0:00:22]}  Ke7 {[%clk 0:00:06]} 36. Qd4 {[%clk 0:00:19]}  Bf6 {[%clk 0:00:06]} 37. Qe4 {[%clk 0:00:16]}  Qb5 {[%clk 0:00:03]} 38. Rxd5 {[%clk 0:00:11]}  Qc6 {[%clk 0:00:02]} 39. Re5 {[%clk 0:00:10]}  Qb5 {[%clk 0:00:01]} 40. Rxe6+ {[%clk 0:00:09]}  Kf7 {[%clk 0:00:00]} 41. Qf5 {[%clk 0:00:06]} 1-0


[Site "https://www.chess.com"]

[Event "Titled Tuesday Blitz August 1 Early 2023"]
[White "Bashirli, Saadat"]
[Black "Bruedigam, Martin"]
[WhiteFideId "13429990"]
[BlackFideId "24608033"]
[WhiteElo "2353"]
[BlackElo "2542"]
[Result "0-1"]
[Round "2"]
[TimeControl "180+1"]
[Date "2023.08.01"]
[WhiteClock "0:00:03"]
[BlackClock "0:00:13"]
[Board "179"]

1. e4 {[%clk 0:02:55]}  c5 {[%clk 0:02:56]} 2. c3 {[%clk 0:02:54]}  d6 {[%clk 0:02:54]} 3. d4 {[%clk 0:02:53]}  Nf6 {[%clk 0:02:53]} 4. Bd3 {[%clk 0:02:52]}  Nc6 {[%clk 0:02:51]} 5. Nf3 {[%clk 0:02:52]}  g6 {[%clk 0:02:44]} 6. O-O {[%clk 0:02:51]}  Bg7 {[%clk 0:02:44]} 7. h3 {[%clk 0:02:50]}  O-O {[%clk 0:02:45]} 8. Be3 {[%clk 0:02:49]}  cxd4 {[%clk 0:02:40]} 9. cxd4 {[%clk 0:02:47]}  Nb4 {[%clk 0:02:40]} 10. Nc3 {[%clk 0:02:45]}  Nxd3 {[%clk 0:02:39]} 11. Qxd3 {[%clk 0:02:45]}  Bd7 {[%clk 0:02:38]} 12. Rac1 {[%clk 0:02:44]}  a6 {[%clk 0:02:37]} 13. Rfd1 {[%clk 0:02:40]}  Rc8 {[%clk 0:02:34]} 14. a3 {[%clk 0:02:31]}  Bc6 {[%clk 0:02:14]} 15. d5 {[%clk 0:02:25]}  Bd7 {[%clk 0:02:14]} 16. Nd4 {[%clk 0:02:25]}  Qa5 {[%clk 0:02:04]} 17. f4 {[%clk 0:02:21]}  Rfd8 {[%clk 0:01:50]} 18. Nf3 {[%clk 0:02:16]}  Bb5 {[%clk 0:01:47]} 19. Qb1 {[%clk 0:02:11]}  Nh5 {[%clk 0:01:31]} 20. Nxb5 {[%clk 0:01:33]}  Qxb5 {[%clk 0:01:32]} 21. b3 {[%clk 0:01:26]}  Ng3 {[%clk 0:01:14]} 22. Kh2 {[%clk 0:00:52]}  Nh5 {[%clk 0:01:00]} 23. Qa2 {[%clk 0:00:41]}  Nf6 {[%clk 0:00:59]} 24. Qb1 {[%clk 0:00:40]}  Nd7 {[%clk 0:00:58]} 25. Nd4 {[%clk 0:00:37]}  Bxd4 {[%clk 0:00:53]} 26. Bxd4 {[%clk 0:00:38]}  f6 {[%clk 0:00:52]} 27. Qb2 {[%clk 0:00:33]}  Nc5 {[%clk 0:00:49]} 28. Bxc5 {[%clk 0:00:31]}  Rxc5 {[%clk 0:00:48]} 29. Rxc5 {[%clk 0:00:27]}  Qxc5 {[%clk 0:00:48]} 30. Rc1 {[%clk 0:00:25]}  Qe3 {[%clk 0:00:48]} 31. Qc2 {[%clk 0:00:22]}  Qxf4+ {[%clk 0:00:47]} 32. Kh1 {[%clk 0:00:22]}  Kf7 {[%clk 0:00:40]} 33. Qc7 {[%clk 0:00:18]}  Re8 {[%clk 0:00:36]} 34. Rc4 {[%clk 0:00:18]}  b5 {[%clk 0:00:32]} 35. Rb4 {[%clk 0:00:17]}  g5 {[%clk 0:00:29]} 36. Qd7 {[%clk 0:00:15]}  Qe5 {[%clk 0:00:26]} 37. Qc7 {[%clk 0:00:14]}  Qa1+ {[%clk 0:00:25]} 38. Kh2 {[%clk 0:00:12]}  Qxa3 {[%clk 0:00:25]} 39. Qc3 {[%clk 0:00:12]}  Qa5 {[%clk 0:00:22]} 40. Qd2 {[%clk 0:00:09]}  h5 {[%clk 0:00:21]} 41. Qc3 {[%clk 0:00:09]}  Rd8 {[%clk 0:00:18]} 42. Kg1 {[%clk 0:00:05]}  Rd7 {[%clk 0:00:18]} 43. Kh2 {[%clk 0:00:05]}  Rc7 {[%clk 0:00:19]} 44. Qd2 {[%clk 0:00:05]}  Rc5 {[%clk 0:00:19]} 45. h4 {[%clk 0:00:04]}  gxh4 {[%clk 0:00:13]} 46. Kh3 {[%clk 0:00:02]}  Ke8 {[%clk 0:00:12]} 47. Kxh4 {[%clk 0:00:02]}  Kd7 {[%clk 0:00:13]} 48. Kxh5 {[%clk 0:00:02]}  Qa1 {[%clk 0:00:12]} 49. g4 {[%clk 0:00:03]}  Qh1+ {[%clk 0:00:12]} 50. Kg6 {[%clk 0:00:03]}  Rc8 {[%clk 0:00:12]} 51. Qh6 {[%clk 0:00:01]}  Rg8+ {[%clk 0:00:12]} 52. Kh7 {[%clk 0:00:02]}  Rh8+ {[%clk 0:00:12]} 53. Kxh8 {[%clk 0:00:02]}  Qxh6+ {[%clk 0:00:12]} 54. Kg8 {[%clk 0:00:03]}  Qd2 {[%clk 0:00:12]} 55. Kf8 {[%clk 0:00:04]}  Qxb4 {[%clk 0:00:12]} 56. Kf7 {[%clk 0:00:05]}  Qxb3 {[%clk 0:00:13]} 57. Kg7 {[%clk 0:00:03]}  Qg3 {[%clk 0:00:13]} 0-1


[Site "https://www.chess.com"]

[Event "Titled Tuesday Blitz August 1 Early 2023"]
[White "Topalov, Aleksandar"]
[Black "Fonseca Manrique, Enrique"]
[WhiteFideId "925659"]
[BlackFideId "5114330"]
[WhiteElo "2350"]
[BlackElo "2534"]
[Result "0-1"]
[Round "2"]
[TimeControl "180+1"]
[Date "2023.08.01"]
[WhiteClock "0:00:10"]
[BlackClock "0:00:11"]
[Board "181"]

1. b3 {[%clk 0:03:00]}  d5 {[%clk 0:02:59]} 2. Bb2 {[%clk 0:02:55]}  Bg4 {[%clk 0:02:59]} 3. g3 {[%clk 0:02:53]}  Nf6 {[%clk 0:02:59]} 4. Bg2 {[%clk 0:02:53]}  e6 {[%clk 0:02:59]} 5. Nf3 {[%clk 0:02:53]}  Nbd7 {[%clk 0:02:58]} 6. O-O {[%clk 0:02:53]}  Be7 {[%clk 0:02:57]} 7. d3 {[%clk 0:02:53]}  O-O {[%clk 0:02:56]} 8. Nbd2 {[%clk 0:02:54]}  c5 {[%clk 0:02:52]} 9. a4 {[%clk 0:02:50]}  Rc8 {[%clk 0:02:49]} 10. e4 {[%clk 0:02:44]}  c4 {[%clk 0:02:35]} 11. e5 {[%clk 0:02:21]}  c3 {[%clk 0:01:56]} 12. exf6 {[%clk 0:02:20]}  Bxf6 {[%clk 0:01:56]} 13. Ba3 {[%clk 0:01:51]}  cxd2 {[%clk 0:01:56]} 14. Rb1 {[%clk 0:01:16]}  Re8 {[%clk 0:01:53]} 15. Qxd2 {[%clk 0:01:12]}  Bc3 {[%clk 0:01:48]} 16. Qe2 {[%clk 0:01:07]}  Qf6 {[%clk 0:01:47]} 17. h3 {[%clk 0:00:59]}  Bh5 {[%clk 0:01:47]} 18. g4 {[%clk 0:01:00]}  Bg6 {[%clk 0:01:46]} 19. Bc1 {[%clk 0:00:55]}  e5 {[%clk 0:01:11]} 20. Bg5 {[%clk 0:00:51]}  Qd6 {[%clk 0:01:08]} 21. Nh4 {[%clk 0:00:51]}  f6 {[%clk 0:00:51]} 22. Be3 {[%clk 0:00:43]}  Bf7 {[%clk 0:00:46]} 23. Nf5 {[%clk 0:00:39]}  Qa6 {[%clk 0:00:41]} 24. Bc1 {[%clk 0:00:35]}  Nf8 {[%clk 0:00:34]} 25. Ba3 {[%clk 0:00:33]}  Ng6 {[%clk 0:00:34]} 26. Nd6 {[%clk 0:00:26]}  Nf4 {[%clk 0:00:33]} 27. Qf3 {[%clk 0:00:26]}  Be6 {[%clk 0:00:25]} 28. Nxe8 {[%clk 0:00:24]}  Rxe8 {[%clk 0:00:25]} 29. Bb2 {[%clk 0:00:18]}  Qc6 {[%clk 0:00:24]} 30. Bxc3 {[%clk 0:00:16]}  Qxc3 {[%clk 0:00:25]} 31. Rbc1 {[%clk 0:00:17]}  d4 {[%clk 0:00:24]} 32. Qxb7 {[%clk 0:00:16]}  h5 {[%clk 0:00:15]} 33. Qc6 {[%clk 0:00:11]}  Rc8 {[%clk 0:00:11]} 34. Qxc3 {[%clk 0:00:11]}  Rxc3 {[%clk 0:00:12]} 35. Rfe1 {[%clk 0:00:11]}  hxg4 {[%clk 0:00:12]} 36. hxg4 {[%clk 0:00:11]}  Bxg4 {[%clk 0:00:13]} 37. f3 {[%clk 0:00:11]}  Be6 {[%clk 0:00:11]} 38. Kf2 {[%clk 0:00:11]}  Kf7 {[%clk 0:00:11]} 39. Bf1 {[%clk 0:00:11]}  Bd5 {[%clk 0:00:11]} 40. Re4 {[%clk 0:00:11]}  g5 {[%clk 0:00:11]} 41. Rxf4 {[%clk 0:00:11]}  gxf4 {[%clk 0:00:11]} 42. Bh3 {[%clk 0:00:11]}  a5 {[%clk 0:00:09]} 43. Bg4 {[%clk 0:00:11]}  Kg6 {[%clk 0:00:09]} 44. Ke2 {[%clk 0:00:12]}  f5 {[%clk 0:00:09]} 45. Bh3 {[%clk 0:00:12]}  e4 {[%clk 0:00:09]} 46. fxe4 {[%clk 0:00:12]}  fxe4 {[%clk 0:00:10]} 47. dxe4 {[%clk 0:00:12]}  Bxe4 {[%clk 0:00:11]} 48. Bf1 {[%clk 0:00:12]}  Kf5 {[%clk 0:00:11]} 49. Kd2 {[%clk 0:00:12]}  f3 {[%clk 0:00:11]} 50. Bc4 {[%clk 0:00:11]}  Kf4 {[%clk 0:00:11]} 51. Bd3 {[%clk 0:00:11]}  Bxd3 {[%clk 0:00:10]} 52. cxd3 {[%clk 0:00:10]}  Rxc1 {[%clk 0:00:11]} 0-1


[Site "https://www.chess.com"]

[Event "Titled Tuesday Blitz August 1 Early 2023"]
[White "Gauri, Shankar"]
[Black "AndresDelgado77"]
[WhiteFideId "5041350"]
[WhiteElo "2532"]
[BlackElo "2348"]
[Result "1-0"]
[Round "2"]
[TimeControl "180+1"]
[Date "2023.08.01"]
[WhiteClock "0:00:10"]
[BlackClock "0:00:00"]
[Board "182"]

1. d4 {[%clk 0:03:00]}  Nf6 {[%clk 0:02:59]} 2. Nf3 {[%clk 0:03:00]}  d5 {[%clk 0:02:56]} 3. c4 {[%clk 0:02:58]}  c6 {[%clk 0:02:56]} 4. Nc3 {[%clk 0:02:55]}  dxc4 {[%clk 0:02:56]} 5. a4 {[%clk 0:02:54]}  Bf5 {[%clk 0:02:55]} 6. e3 {[%clk 0:02:54]}  e6 {[%clk 0:02:55]} 7. Bxc4 {[%clk 0:02:55]}  Bb4 {[%clk 0:02:54]} 8. O-O {[%clk 0:02:53]}  Nbd7 {[%clk 0:02:54]} 9. Qe2 {[%clk 0:02:52]}  Bg4 {[%clk 0:02:54]} 10. h3 {[%clk 0:02:51]}  Bxf3 {[%clk 0:02:54]} 11. Qxf3 {[%clk 0:02:50]}  O-O {[%clk 0:02:54]} 12. Bb3 {[%clk 0:02:40]}  Qa5 {[%clk 0:02:09]} 13. Bd2 {[%clk 0:02:35]}  c5 {[%clk 0:01:59]} 14. Qxb7 {[%clk 0:02:19]}  Rab8 {[%clk 0:01:58]} 15. Qf3 {[%clk 0:02:16]}  cxd4 {[%clk 0:01:54]} 16. exd4 {[%clk 0:02:14]}  Qb6 {[%clk 0:01:51]} 17. Ba2 {[%clk 0:01:27]}  Qxd4 {[%clk 0:01:41]} 18. Be3 {[%clk 0:01:26]}  Qe5 {[%clk 0:01:41]} 19. Bxa7 {[%clk 0:01:23]}  Bd6 {[%clk 0:01:38]} 20. g3 {[%clk 0:01:17]}  Rxb2 {[%clk 0:01:38]} 21. Nb5 {[%clk 0:01:03]}  Bc5 {[%clk 0:01:23]} 22. Bxc5 {[%clk 0:00:53]}  Nxc5 {[%clk 0:01:04]} 23. Bc4 {[%clk 0:00:42]}  Nce4 {[%clk 0:00:52]} 24. Bd3 {[%clk 0:00:35]}  Nd2 {[%clk 0:00:45]} 25. Qe2 {[%clk 0:00:21]}  Qd5 {[%clk 0:00:28]} 26. Nc3 {[%clk 0:00:14]}  Nf3+ {[%clk 0:00:21]} 27. Kh1 {[%clk 0:00:13]}  Qb7 {[%clk 0:00:18]} 28. Be4 {[%clk 0:00:12]}  Nxe4 {[%clk 0:00:11]} 29. Qxe4 {[%clk 0:00:12]}  Qxe4 {[%clk 0:00:09]} 30. Nxe4 {[%clk 0:00:13]}  Ra8 {[%clk 0:00:09]} 31. Kg2 {[%clk 0:00:14]}  Ne5 {[%clk 0:00:08]} 32. a5 {[%clk 0:00:14]}  Rb5 {[%clk 0:00:07]} 33. a6 {[%clk 0:00:13]}  Rb6 {[%clk 0:00:06]} 34. Nc5 {[%clk 0:00:14]}  Rc6 {[%clk 0:00:06]} 35. Rfc1 {[%clk 0:00:12]}  Kf8 {[%clk 0:00:00]} 36. f4 {[%clk 0:00:10]} 1-0


[Site "https://www.chess.com"]

[Event "Titled Tuesday Blitz August 1 Early 2023"]
[White "Shapiro, Viktor"]
[Black "Goswami, Vedant"]
[WhiteFideId "4175700"]
[BlackFideId "5003725"]
[WhiteElo "2531"]
[BlackElo "2348"]
[Result "1-0"]
[Round "2"]
[TimeControl "180+1"]
[Date "2023.08.01"]
[WhiteClock "0:01:08"]
[BlackClock "0:00:00"]
[Board "183"]

1. c4 {[%clk 0:03:00]}  Nf6 {[%clk 0:02:55]} 2. Nc3 {[%clk 0:03:01]}  a6 {[%clk 0:02:54]} 3. g3 {[%clk 0:02:59]}  c6 {[%clk 0:02:47]} 4. a4 {[%clk 0:02:58]}  d5 {[%clk 0:02:46]} 5. cxd5 {[%clk 0:02:57]}  cxd5 {[%clk 0:02:45]} 6. Bg2 {[%clk 0:02:57]}  d4 {[%clk 0:02:44]} 7. Nb1 {[%clk 0:02:53]}  d3 {[%clk 0:02:38]} 8. e3 {[%clk 0:02:38]}  Nc6 {[%clk 0:02:37]} 9. Nf3 {[%clk 0:02:37]}  Nb4 {[%clk 0:02:20]} 10. Na3 {[%clk 0:02:32]}  Qc7 {[%clk 0:02:03]} 11. O-O {[%clk 0:02:19]}  Bg4 {[%clk 0:02:00]} 12. h3 {[%clk 0:02:18]}  Bh5 {[%clk 0:01:52]} 13. g4 {[%clk 0:02:16]}  Bg6 {[%clk 0:01:51]} 14. b3 {[%clk 0:02:17]}  Nc2 {[%clk 0:01:27]} 15. Bb2 {[%clk 0:02:15]}  Nxa1 {[%clk 0:01:25]} 16. Qxa1 {[%clk 0:02:15]}  h5 {[%clk 0:01:07]} 17. Ne5 {[%clk 0:02:08]}  hxg4 {[%clk 0:01:01]} 18. hxg4 {[%clk 0:02:08]}  Nd7 {[%clk 0:00:47]} 19. Nac4 {[%clk 0:02:08]}  f6 {[%clk 0:00:42]} 20. Nf3 {[%clk 0:01:57]}  Be4 {[%clk 0:00:36]} 21. Rc1 {[%clk 0:01:54]}  Bxf3 {[%clk 0:00:32]} 22. Bxf3 {[%clk 0:01:54]}  Qh2+ {[%clk 0:00:32]} 23. Kf1 {[%clk 0:01:53]}  Rh3 {[%clk 0:00:20]} 24. Bg2 {[%clk 0:01:48]}  Rh4 {[%clk 0:00:20]} 25. f3 {[%clk 0:01:42]}  Qg3 {[%clk 0:00:19]} 26. e4 {[%clk 0:01:14]}  Rh2 {[%clk 0:00:17]} 27. Ne3 {[%clk 0:01:15]}  e5 {[%clk 0:00:14]} 28. Ba3 {[%clk 0:01:10]}  Bxa3 {[%clk 0:00:11]} 29. Qxa3 {[%clk 0:01:10]}  Rxg2 {[%clk 0:00:08]} 30. Nxg2 {[%clk 0:01:10]}  Qxf3+ {[%clk 0:00:09]} 31. Kg1 {[%clk 0:01:11]}  Kf7 {[%clk 0:00:07]} 32. Qd6 {[%clk 0:01:10]}  Rd8 {[%clk 0:00:06]} 33. Rc7 {[%clk 0:01:10]}  Qxg4 {[%clk 0:00:00]} 34. Qxd3 {[%clk 0:01:08]} 1-0


[Site "https://www.chess.com"]